bitfinex-derivatives/quotes_SOLF0:USTF0_20250720
["timestamp","ask_amount","ask_price","bid_price","bid_amount"]
[1752981950932,1.8829903,177.7,177.67,3.01]
[1752981951136,1.16,177.7,177.6,3.01]
[1752981951435,1.8829903,177.67,177.62,5.6268]
[1752981951636,1.8829903,177.67,177.63,3.01]
[1752981951826,1.16,177.69,177.63,3.01]
[1752981952135,1.8829903,177.68,177.63,3.01]
[1752981952835,1.8829903,177.7,177.63,3.01]
[1752981953235,1.8829903,177.68,177.65,3.01]
[1752981953429,1.8829903,177.68,177.67,3.01]
[1752981953634,8.6681903,177.68,177.65,3.01]
[1752981953831,5.6252,177.68,177.6,3.01]
[1752981954037,1.8829903,177.68,177.6,3.01]
[1752981954435,7.5079903,177.68,177.63,3.01]
[1752981954832,5.625,177.68,177.63,3.01]
[1752981955035,5.6253,177.67,177.63,3.01]
[1752981955535,1.16,177.68,177.63,3.01]
[1752981955733,1.8829903,177.69,177.63,3.01]
[1752981956433,7.5077903,177.69,177.63,8.6365]
[1752981956635,1.8829903,177.67,177.64,3.01]
[1752981956835,1.8829903,177.67,177.65,3.01]
[1752981957436,3.0429903,177.67,177.65,3.01]
[1752981957934,5.6256,177.66,177.65,3.01]
[1752981958150,1.16,177.66,177.59,3.01]
[1752981958335,1.8829903,177.64,177.59,3.01]
[1752981959030,1.8829903,177.64,177.61,5.627]
[1752981959238,1.8829903,177.64,177.63,3.01]
[1752981960543,2.8626235,177.75,177.58,378.52]
[1752981960544,3.0429903,177.66,177.59,3.01]
[1752981960850,3.0429903,177.66,177.61,5.6272]
[1752981961142,1.8829903,177.64,177.59,3.01]
[1752981961338,1.8829903,177.66,177.63,5.6264]
[1752981961545,1.8829903,177.66,177.59,4.8929903]
[1752981961546,1.8829903,177.68,177.64,3.01]
[1752981961844,1.8829903,177.7,177.66,5.6253]
[1752981962242,1.8829903,177.7,177.68,3.01]
[1752981963352,6.7838,177.72,177.64,3.01]
[1752981963544,2.8626235,177.75,177.64,3.01]
[1752981963545,1.8829903,177.71,177.64,3.01]
[1752981964043,1.8829903,177.71,177.68,3.01]
[1752981964235,1.16,177.73,177.69,3.01]
[1752981964436,1.8829903,177.71,177.69,3.01]
[1752981964647,3.0429903,177.71,177.69,3.01]
[1752981964844,3.0429903,177.71,177.7,3.01]
[1752981965236,0.97948155,177.78,177.7,3.01]
[1752981965237,1.16,177.73,177.7,3.01]
[1752981965447,1.16,177.75,177.7,3.01]
[1752981965746,7.5062903,177.74,177.7,3.01]
[1752981966135,3.0429903,177.74,177.7,3.01]
[1752981966640,1.16,177.76,177.7,3.01]
[1752981966846,1.8829903,177.75,177.7,3.01]
[1752981967654,1.8829903,177.76,177.69,3.01]
[1752981967849,1.8829903,177.78,177.7,1.8829903]
[1752981968046,1.8829903,177.78,177.73,5.6234]
[1752981968251,1.8829903,177.78,177.74,3.01]
[1752981968751,1.8829903,177.78,177.75,3.01]
[1752981969651,7.5047903,177.78,177.75,3.01]
[1752981970953,5.6222,177.77,177.75,3.01]
[1752981971250,6.7822,177.77,177.75,3.01]
[1752981971647,5.6225,177.76,177.75,3.01]
[1752981971852,8.6654903,177.76,177.74,3.01]
[1752981972250,5.6228,177.75,177.74,3.01]
[1752981972446,3.0429903,177.76,177.74,3.01]
[1752981973055,1.16,177.78,177.73,3.01]
[1752981973247,1.8829903,177.77,177.73,3.01]
[1752981973848,1.16,177.8,177.73,3.01]
[1752981973849,1.8829903,177.79,177.73,3.01]
[1752981974149,1.8829903,177.79,177.75,5.6226]
[1752981974453,1.8829903,177.79,177.76,3.01]
[1752981975351,1.16,177.8,177.76,8.6324]
[1752981975549,3.0429903,177.8,177.77,3.01]
[1752981975748,3.0429903,177.8,177.7,113.58]
[1752981975749,1.16,177.8,177.78,3.01]
[1752981975949,1.8829903,177.79,177.78,3.01]
[1752981976450,7.5044903,177.79,177.78,3.01]
[1752981976661,1.16,177.78,177.72,3.01]
[1752981976950,8.6654903,177.76,177.72,8.6335]
[1752981977145,8.6654903,177.76,177.74,3.01]
[1752981977351,5.6218,177.79,177.74,5.6229]
[1752981977650,1.8829903,177.76,177.75,3.01]
[1752981978552,7.5048903,177.78,177.75,3.01]
[1752981979346,1.8829903,177.79,177.75,3.01]
[1752981979551,3.0429903,177.79,177.75,3.01]
[1752981980358,8.6646903,177.79,177.75,8.6326]
[1752981980564,3.0429903,177.79,177.76,3.3]
[1752981981159,3.0429903,177.79,177.77,3.3]
[1752981981355,1.16,177.78,177.77,3.3]
[1752981981961,3.0429903,177.79,177.77,3.3]
[1752981982351,8.6644903,177.79,177.77,3.3]
[1752981982958,1.16,177.78,177.76,3.3]
[1752981983258,3.0429903,177.77,177.76,3.3]
[1752981983462,1.8829903,177.77,177.75,3.3]
[1752981983762,1.8829903,177.77,177.76,3.3]
[1752981984457,7.5050903,177.77,177.76,3.3]
[1752981984862,1.8829903,177.77,177.76,3.3]
[1752981985064,1.16,177.78,177.77,3.3]
[1752981985363,1.16,177.81,177.77,3.3]
[1752981985558,1.8829903,177.78,177.75,5.6225]
[1752981985960,1.8829903,177.78,177.7,1.8829903]
[1752981986163,1.16,177.8,177.7,1.8829903]
[1752981986164,1.16,177.8,177.77,3.3]
[1752981986368,1.8829903,177.79,177.77,3.3]
[1752981987160,2.86216869,177.84,177.78,3.3]
[1752981987161,2.13917839,177.84,177.78,3.3]
[1752981987362,1.8829903,177.81,177.78,3.3]
[1752981987861,1.8829903,177.81,177.79,3.3]
[1752981988064,1.8829903,177.8,177.79,3.3]
[1752981988774,1.16,177.81,177.8,3.3]
[1752981988966,3.0429903,177.81,177.8,3.3]
[1752981989473,1.8829903,177.81,177.8,3.3]
[1752981991073,3.0429903,177.81,177.78,3.3]
[1752981991265,3.0429903,177.81,177.79,3.3]
[1752981991467,7.5038903,177.81,177.79,3.3]
[1752981991775,1.16,177.8,177.73,3.3]
[1752981991969,1.8829903,177.76,177.73,3.3]
[1752981992868,1.8829903,177.76,177.75,3.3]
[1752981993173,1.8829903,177.77,177.75,3.3]
[1752981994175,0.97894426,177.87,177.7,4.70457374]
[1752981994369,1.8829903,177.76,177.75,3.3]
[1752981994573,1.8829903,177.76,177.72,3.3]
[1752981994877,3.0429903,177.74,177.67,4.70457374]
[1752981995172,1.8829903,177.72,177.68,4.42928252]
[1752981995373,1.8829903,177.72,177.71,8.9238]
[1752981995568,1.8829903,177.74,177.71,7.72928252]
[1752981995773,1.8829903,177.74,177.73,3.3]
[1752981995976,1.8829903,177.74,177.73,8.9234]
[1752981996277,1.8829903,177.74,177.73,3.3]
[1752981997178,1.16,177.77,177.73,8.9234]
[1752981997379,1.8829903,177.74,177.73,8.9234]
[1752981997578,1.8829903,177.76,177.74,3.3]
[1752981997782,1.8829903,177.76,177.75,8.9227]
[1752981998278,1.8829903,177.78,177.76,3.3]
[1752981998669,0.97894426,177.87,177.76,3.3]
[1752981998872,0.97894426,177.87,177.78,1.8829903]
[1752981999069,0.97894426,177.87,177.77,4.43161141]
[1752981999070,1.16,177.93,177.85,3.3]
[1752981999477,1.8829903,177.91,177.87,3.3]
[1752981999678,1.16,177.93,177.87,3.3]
[1752982000081,1.16,177.95,177.87,3.3]
[1752982000580,1.8829903,177.93,177.87,3.3]
[1752982000777,3.0429903,177.9,177.84,3.3]
[1752982000976,1.16,177.99,177.86,3.3]
[1752982001176,1.16,177.9,177.87,4.41873905]
[1752982001377,1.16,177.9,177.88,3.3]
[1752982001579,1.8829903,177.89,177.88,3.3]
[1752982001882,1.16,177.88,177.86,3.3]
[1752982002081,1.16,177.99,177.8,3.3]
[1752982002382,1.16,177.93,177.82,3.3]
[1752982002585,1.16,177.93,177.84,3.3]
[1752982002893,1.16,177.93,177.86,3.3]
[1752982003176,1.16,177.94,177.86,3.3]
[1752982003378,1.8829903,177.89,177.83,3.3]
[1752982003683,1.8829903,177.89,177.78,113.82]
[1752982003684,1.16,177.88,177.79,3.3]
[1752982003879,1.8829903,177.87,177.85,3.3]
[1752982004177,1.8829903,177.89,177.85,3.3]
[1752982004578,1.8829903,177.91,177.85,3.3]
[1752982004782,1.8829903,177.92,177.85,3.3]
[1752982004978,1.8829903,177.92,177.85,5.1829903]
[1752982005182,1.8829903,177.92,177.86,3.3]
[1752982005479,1.8829903,177.9,177.86,3.3]
[1752982005678,1.8829903,177.9,177.88,3.3]
[1752982005882,0.97833879,177.99,177.89,3.3]
[1752982006086,1.8829903,177.91,177.83,1.8829903]
[1752982006279,1.8829903,177.91,177.9,3.3]
[1752982006479,0.97833879,177.99,177.83,1.8829903]
[1752982006785,6.7772,177.93,177.91,3.3]
[1752982006984,1.16,177.93,177.91,3.3]
[1752982007178,1.16,177.94,177.92,3.3]
[1752982007483,6.7764,177.96,177.93,3.3]
[1752982007983,1.8829903,177.95,177.86,1.8829903]
[1752982008682,1.16,177.97,177.92,5.6173]
[1752982008895,1.16,177.99,177.89,3.3]
[1752982009086,1.8829903,177.96,177.94,3.3]
[1752982010380,1.8829903,177.97,177.94,3.3]
[1752982011083,1.8829903,177.97,177.95,5.6163]
[1752982011278,1.8829903,177.97,177.96,3.28]
[1752982011882,1.16,178.01,177.92,1.8829903]
[1752982012082,1.8829903,177.98,177.93,3.28]
[1752982013014,1.8829903,177.98,177.95,3.28]
[1752982013681,1.8829903,177.99,177.95,3.28]
[1752982013881,1.8829903,177.98,177.95,3.28]
[1752982014278,1.16,178.01,177.95,3.28]
[1752982014480,1.8829903,177.99,177.95,3.28]
[1752982014687,1.8829903,177.99,177.96,5.6159]
[1752982014987,1.8829903,177.99,177.97,3.28]
[1752982015188,1.8829903,177.99,177.98,3.28]
[1752982016480,5.6149,178.0,177.98,3.28]
[1752982016682,1.16,178.01,177.98,3.28]
[1752982016886,1.8829903,177.99,177.98,3.28]
[1752982017082,1.16,178.01,177.98,3.28]
[1752982017283,5.6149,178.0,177.98,3.28]
[1752982017481,1.16,178.03,177.92,3.28]
[1752982017687,1.16,178.05,177.92,3.28]
[1752982017886,7.4969903,178.03,177.95,1.8829903]
[1752982018090,7.4969903,178.03,177.96,3.28]
[1752982018288,7.4969903,178.03,177.95,1.8829903]
[1752982018492,7.4969903,178.03,177.99,3.28]
[1752982018788,1.8829903,178.03,177.99,3.28]
[1752982019892,6.7734,178.05,178.02,3.28]
[1752982020088,1.8829903,178.03,178.02,3.28]
[1752982020596,8.6568903,178.03,177.96,3.28]
[1752982020888,3.0429903,178.03,178.0,5.6148]
[1752982021090,1.8829903,178.03,178.02,3.28]
[1752982021285,0.97781649,178.09,178.02,3.28]
[1752982021286,1.16,178.08,178.02,3.28]
[1752982021496,1.8829903,178.07,178.02,3.28]
[1752982021792,1.16,178.05,178.03,3.28]
[1752982021989,1.16,178.03,178.01,3.28]
[1752982022193,1.16,178.05,178.02,3.28]
[1752982022491,3.0429903,178.11,177.99,3.28]
[1752982022694,1.8829903,178.07,178.01,3.28]
[1752982022991,6.7716,178.11,178.01,3.28]
[1752982022992,1.16,178.11,178.01,3.28]
[1752982023193,1.8829903,178.09,178.01,5.1629903]
[1752982023395,1.8829903,178.09,178.02,3.28]
[1752982023790,1.16,178.11,178.02,3.28]
[1752982024088,1.8829903,178.09,178.07,5.6126]
[1752982024399,1.8829903,178.09,178.08,3.28]
[1752982024593,1.16,178.09,178.05,3.28]
[1752982024894,1.8829903,178.07,178.06,3.28]
[1752982025093,1.8829903,178.07,178.04,3.28]
[1752982025293,1.8829903,178.07,178.05,3.28]
[1752982025492,3.0429903,178.07,177.96,1.8829903]
[1752982025697,1.8829903,178.04,177.98,3.28]
[1752982025889,1.16,178.06,177.98,3.28]
[1752982026093,1.8829903,178.04,177.98,3.28]
[1752982026292,1.8829903,178.04,178.0,5.6149]
[1752982026494,1.8829903,178.04,178.02,3.28]
[1752982026895,3.0429903,178.04,178.01,3.28]
[1752982027095,1.16,178.04,178.02,3.28]
[1752982027397,1.8829903,178.11,177.98,3.28]
[1752982027398,1.16,178.01,177.98,3.28]
[1752982027594,1.8829903,178.0,177.99,3.28]
[1752982028195,1.16,178.04,177.99,3.28]
[1752982028196,5.6145,178.02,177.99,3.28]
[1752982028402,1.8829903,178.0,177.92,124.25859267]
[1752982028692,5.6149,178.0,177.95,5.6162]
[1752982028898,1.8829903,178.11,177.93,3.28]
[1752982028899,1.8829903,177.99,177.93,3.28]
[1752982029095,1.8829903,177.99,177.94,4.5670622]
[1752982029293,1.8829903,177.99,177.95,5.6162]
[1752982029494,5.6149,178.0,177.96,3.28]
[1752982029799,1.16,178.02,177.96,3.28]
[1752982029999,1.8829903,177.99,177.98,3.28]
[1752982030687,1.16,178.02,177.93,3.28]
[1752982030891,1.8829903,178.01,177.95,3.28]
[1752982031293,5.6143,178.02,177.95,3.28]
[1752982031603,1.16,178.03,177.95,3.28]
[1752982031805,1.16,178.03,177.92,121.5029903]
[1752982031806,1.8829903,178.01,178.0,3.28]
[1752982032294,1.8829903,178.03,178.02,3.28]
[1752982032800,1.8829903,178.03,178.02,8.8942]
[1752982033000,119.7,178.13,178.02,3.28]
[1752982033196,1.8829903,178.07,178.02,3.28]
[1752982033700,1.8829903,178.03,178.01,3.28]
[1752982033897,1.16,178.12,178.02,3.28]
[1752982034096,1.8829903,178.04,178.03,3.28]
[1752982034407,5.6139,178.03,178.01,3.28]
[1752982034598,1.8829903,178.02,178.01,3.28]
[1752982035291,7.4971903,178.02,178.01,3.28]
[1752982035795,7.4971903,178.02,177.99,3.28]
[1752982035796,1.8829903,178.02,177.99,3.28]
[1752982035997,1.8829903,178.0,177.99,3.28]
[1752982036194,1.16,178.04,177.97,3.28]
[1752982036394,1.8829903,178.03,177.97,3.28]
[1752982036595,1.8829903,178.03,177.98,4.5751249]
[1752982036796,7.4969903,178.03,177.99,3.28]
[1752982037101,3.05525393,178.03,177.99,3.28]
[1752982037499,3.05525393,178.03,178.0,3.28]
[1752982038099,8.66885393,178.04,178.0,3.28]
[1752982038296,8.66885393,178.04,177.99,5.6149]
[1752982038497,3.05525393,178.02,177.98,5.6155]
[1752982038702,3.05525393,178.02,177.99,4.58049243]
[1752982038897,3.05525393,178.02,177.99,3.28]
[1752982039292,8.66945393,178.03,177.99,8.8952]
[1752982039501,5.6142,178.03,178.0,3.28]
[1752982039702,8.66945393,178.03,178.0,3.28]
[1752982041297,3.05525393,178.03,177.97,5.6157]
[1752982041496,3.05525393,177.99,177.98,7.7544353]
[1752982041891,3.05525393,177.99,177.98,4.5944353]
[1752982042096,4.21525393,177.99,177.96,3.16]
[1752982042299,3.05525393,177.97,177.96,3.16]
[1752982042495,9.83105393,177.97,177.96,4.60573502]
[1752982042801,4.21525393,177.97,177.96,4.60573502]
[1752982042997,3.05525393,177.98,177.97,3.16]
[1752982043199,1.16,178.01,177.92,7.79859267]
[1752982043400,3.05525393,177.99,177.93,9.24978238]
[1752982043598,3.05525393,177.99,177.95,3.16]
[1752982043799,3.05525393,177.99,177.98,3.16]
[1752982044203,4.21525393,177.99,177.95,3.16]
[1752982044393,1.16,177.97,177.96,4.6137304]
[1752982045299,6.7758,177.97,177.96,4.6137304]
[1752982045501,9.83105393,177.97,177.96,4.6137304]
[1752982045804,5.6162,177.96,177.94,3.16]
[1752982045994,5.6162,177.96,177.95,7.77800237]
[1752982046400,5.6167,177.95,177.93,3.16]
[1752982046600,6.7767,177.95,177.94,4.61850514]
[1752982046813,5.6167,177.95,177.94,7.77850514]
[1752982047104,8.67195393,177.95,177.94,7.77850514]
[1752982047605,1.16,177.99,177.95,3.16]
[1752982047806,3.05525393,177.98,177.95,3.16]
[1752982048101,3.05525393,177.98,177.96,3.16]
[1752982048307,3.05525393,177.98,177.97,3.16]
[1752982049400,11.2227,178.12,177.97,3.16]
[1752982049600,3.05525393,177.99,177.97,3.16]
[1752982049797,3.05525393,177.99,177.98,3.16]
[1752982050111,8.67045393,177.99,177.98,3.16]
[1752982050404,9.83045393,177.99,177.98,3.16]
[1752982050604,8.67045393,177.99,177.98,3.16]
[1752982051210,3.05525393,177.99,177.98,3.16]
[1752982052509,3.05525393,178.09,177.98,3.16]
[1752982052708,3.05525393,178.02,177.98,3.16]
[1752982053307,8.66975393,178.02,177.98,3.16]
[1752982053610,4.21525393,178.02,177.99,3.16]
[1752982053808,1.16,178.01,177.99,3.16]
[1752982054009,1.16,178.01,177.96,4.63859267]
[1752982054210,3.05525393,178.02,178.0,3.16]
[1752982054610,4.21525393,178.02,177.97,3.16]
[1752982054908,3.05525393,178.0,177.97,3.16]
[1752982055108,5.6153,177.99,177.98,3.16]
[1752982056511,8.67025393,178.0,177.99,3.16]
[1752982056700,5.615,178.0,177.99,3.16]
[1752982056904,7.49035012,178.0,177.99,3.16]
[1752982057104,5.615,178.0,177.99,3.16]
[1752982057307,7.49035012,178.0,177.99,3.16]
[1752982058011,1.87535012,178.0,177.99,3.16]
[1752982059506,7.49025012,178.0,177.99,3.16]
[1752982065216,5.6149,178.0,177.99,3.16]
[1752982065512,7.49025012,178.0,177.99,3.16]
[1752982068508,1.87535012,178.0,177.99,3.16]
[1752982069218,7.49025012,178.0,177.99,3.16]
[1752982069813,1.87535012,178.0,177.99,3.16]
[1752982070516,5.6146,178.01,177.99,3.16]
[1752982070706,1.87535012,178.0,177.99,3.16]
[1752982070911,9.42922096,178.1,177.99,3.16]
[1752982071110,1.87535012,178.02,177.99,3.16]
[1752982071715,1.87535012,178.02,178.01,3.18]
[1752982074023,1.87535012,178.02,178.01,8.7946]
[1752982074517,1.87535012,178.04,178.03,3.18]
[1752982076119,1.87535012,178.04,178.03,7.64352835]
[1752982076822,1.87535012,178.04,178.03,3.18]
[1752982078720,1.15,178.08,178.03,3.18]
[1752982078924,1.87535012,178.05,178.03,3.18]
[1752982080727,7.48895012,178.05,178.03,3.18]
[1752982080928,1.87535012,178.05,178.03,3.18]
[1752982081129,1.87535012,178.05,177.99,3.18]
[1752982081330,5.6137,178.04,178.01,3.18]
[1752982081533,1.16,178.12,178.03,3.18]
[1752982081826,1.87535012,178.04,178.03,3.18]
[1752982083020,7.48895012,178.04,178.03,3.18]
[1752982083225,3.03535012,178.04,177.98,3.18]
[1752982083434,3.03535012,178.04,177.93,1.87535012]
[1752982083435,1.87535012,178.02,178.0,3.18]
[1752982084132,1.87535012,178.11,178.0,3.18]
[1752982084337,1.87535012,178.03,178.0,3.18]
[1752982084832,7.48945012,178.03,178.0,3.18]
[1752982085028,3.03535012,178.03,178.0,3.18]
[1752982085232,1.16,178.02,178.01,3.18]
[1752982085636,6.7742,178.02,178.01,3.18]
[1752982085831,1.16,178.02,178.01,3.18]
[1752982086132,8.64925012,178.03,178.02,3.18]
[1752982086435,5.6139,178.03,178.02,3.18]
[1752982086635,8.64925012,178.03,178.02,3.18]
[1752982086836,5.6146,178.02,178.01,3.18]
[1752982088843,7.48935012,178.03,178.01,3.18]
[1752982089741,5.614,178.03,178.01,3.18]
[1752982089944,7.48935012,178.03,178.01,3.18]
[1752982090540,5.6142,178.02,178.01,3.18]
[1752982090935,1.16,178.02,177.99,3.18]
[1752982091143,1.87535012,178.01,178.0,3.18]
[1752982091442,1.87535012,178.11,178.01,3.18]
[1752982091644,1.87535012,178.02,178.01,3.18]
[1752982091834,5.6142,178.02,178.01,3.18]
[1752982092037,7.48955012,178.02,178.01,3.18]
[1752982094745,1.87535012,178.02,178.01,3.18]
[1752982095542,7.48955012,178.02,178.01,3.18]
[1752982095940,1.87535012,178.06,178.02,3.18]
[1752982096241,1.16,178.05,178.02,3.18]
[1752982096735,1.87535012,178.05,178.02,3.18]
[1752982097134,1.87535012,178.05,178.03,5.6139]
[1752982097343,1.87535012,178.05,178.04,3.18]
[1752982099243,7.48845012,178.06,178.04,3.18]
[1752982100444,7.48845012,178.06,178.05,2.99]
[1752982100445,1.87535012,178.06,178.05,2.99]
[1752982100949,1.16,178.14,178.0,6.57064943]
[1752982101144,1.87535012,178.09,178.01,4.43442367]
[1752982101339,1.87535012,178.09,178.03,2.99]
[1752982101535,1.87535012,178.09,178.05,2.99]
[1752982102043,1.87535012,178.09,178.08,5.6124]
[1752982102247,5.6117,178.11,178.08,5.6124]
[1752982102547,1.87535012,178.1,178.09,2.99]
[1752982103449,7.48705012,178.1,178.09,2.99]
[1752982103745,1.87535012,178.1,178.09,2.99]
[1752982104347,7.48705012,178.1,178.09,2.99]
[1752982105450,7.48685012,178.11,178.09,2.99]
[1752982105649,1.87535012,178.11,178.09,2.99]
[1752982105950,1.87535012,178.11,178.04,2.99]
[1752982106843,1.87535012,178.11,178.05,4.42780498]
[1752982107148,1.16,178.13,178.08,2.99]
[1752982107348,3.03535012,178.12,178.08,2.99]
[1752982108050,5.6116,178.11,178.08,2.99]
[1752982108250,7.48695012,178.11,178.08,2.99]
[1752982109049,5.6116,178.11,178.08,2.99]
[1752982109248,7.48695012,178.11,178.08,2.99]
[1752982109749,6.7717,178.1,178.09,2.99]
[1752982111448,5.6117,178.1,178.09,2.99]
[1752982111753,6.7717,178.1,178.09,2.99]
[1752982112048,1.16,178.17,178.1,2.99]
[1752982112242,1.16,178.11,178.1,2.99]
[1752982112443,1.16,178.1,178.09,2.99]
[1752982112647,3.03535012,178.1,178.09,2.99]
[1752982112847,8.64705012,178.1,178.09,2.99]
[1752982115855,5.613,178.06,178.02,2.99]
[1752982116052,1.16,178.1,178.02,2.99]
[1752982116351,7.48745012,178.09,178.04,5.6136]
[1752982116549,1.16,178.12,178.05,2.99]
[1752982116952,8.64655012,178.12,178.08,2.99]
[1752982118454,1.87535012,178.12,178.08,2.99]
[1752982118651,7.48625012,178.13,178.08,2.99]
[1752982118956,8.64625012,178.13,178.08,2.99]
[1752982119352,3.03535012,178.13,178.08,2.99]
[1752982119956,1.16,178.12,178.08,2.99]
[1752982120767,6.7713,178.12,178.08,2.99]
[1752982121761,5.6113,178.12,178.08,2.99]
[1752982122351,5.6113,178.12,178.08,8.6023]
[1752982122558,1.87535012,178.15,178.09,2.99]
[1752982122852,1.16,178.18,178.11,2.99]
[1752982123048,6.7695,178.18,178.14,2.99]
[1752982123953,6.7695,178.18,178.15,2.99]
[1752982124656,5.6095,178.18,178.15,2.99]
[1752982124955,7.48435012,178.19,178.15,8.6001]
[1752982125147,1.16,178.21,178.16,2.99]
[1752982125351,1.87535012,178.2,178.16,2.99]
[1752982125557,3.03535012,178.2,178.16,2.99]
[1752982125951,1.16,178.2,178.16,2.99]
[1752982126151,3.03535012,178.2,178.16,2.99]
[1752982127059,5.609,178.19,178.16,2.99]
[1752982127260,3.03535012,178.2,178.16,2.99]
[1752982127961,1.16,178.19,178.16,2.99]
[1752982128353,7.48455012,178.18,178.17,2.99]
[1752982128553,8.64455012,178.18,178.17,2.99]
[1752982128855,7.48455012,178.18,178.17,2.99]
[1752982129057,8.64455012,178.18,178.17,2.99]
[1752982129358,7.48455012,178.18,178.17,2.99]
[1752982129761,5.6092,178.18,178.17,2.99]
[1752982131851,1.16,178.17,178.14,3.08]
[1752982132052,3.03535012,178.17,178.14,3.08]
[1752982132762,6.7701,178.16,178.15,3.08]
[1752982133662,1.16,178.15,178.14,3.08]
[1752982133959,3.03535012,178.15,178.14,3.08]
[1752982134461,7.48545012,178.15,178.14,3.08]
[1752982135562,1.87535012,178.15,178.14,3.08]
[1752982136063,7.48505012,178.17,178.14,3.08]
[1752982137660,8.64505012,178.17,178.14,3.08]
[1752982138064,7.48505012,178.17,178.14,3.08]
[1752982138366,5.6099,178.16,178.14,3.08]
[1752982138565,1.87535012,178.17,178.14,3.08]
[1752982138865,3.03535012,178.17,178.14,3.08]
[1752982139061,8.64505012,178.17,178.14,3.08]
[1752982139265,1.16,178.16,178.14,3.08]
[1752982139463,1.16,178.16,178.15,3.08]
[1752982139956,3.03535012,178.17,178.16,3.08]
[1752982141363,8.64495012,178.17,178.16,3.08]
[1752982141565,6.7696,178.17,178.16,3.08]
[1752982141764,1.16,178.25,178.11,3.08]
[1752982141971,1.87535012,178.2,178.13,3.08]
[1752982142471,1.87535012,178.2,178.18,3.08]
[1752982143061,1.87535012,178.2,178.19,3.08]
[1752982144673,1.16,178.19,178.17,3.08]
[1752982144865,1.87535012,178.18,178.17,3.08]
[1752982145267,1.16,178.19,178.1,1.87535012]
[1752982145268,1.16,178.25,178.11,3.08]
[1752982145469,1.87535012,178.19,178.13,3.08]
[1752982145667,1.87535012,178.19,178.15,3.08]
[1752982145872,3.03535012,178.19,178.15,3.08]
[1752982146072,1.87535012,178.17,178.15,3.08]
[1752982147476,1.87535012,178.17,178.15,5.6101]
[1752982147676,1.87535012,178.18,178.16,3.08]
[1752982147894,1.87535012,178.18,178.08,6.57064943]
[1752982147895,5.6096,178.17,178.15,3.08]
[1752982148077,5.6096,178.17,178.16,3.08]
[1752982148879,6.7593,178.18,178.16,3.08]
[1752982149074,5.6093,178.18,178.17,3.08]
[1752982149270,7.48465012,178.18,178.17,3.08]
[1752982149476,8.63465012,178.18,178.17,3.08]
[1752982149682,1.87535012,178.18,178.1,1.87535012]
[1752982149886,1.87535012,178.18,178.12,3.08]
[1752982150080,7.48465012,178.18,178.14,5.6103]
[1752982150277,7.48465012,178.18,178.15,3.08]
[1752982150582,1.87535012,178.18,178.15,3.08]
[1752982150784,3.02535012,178.18,178.15,3.08]
[1752982151184,5.6097,178.17,178.15,3.08]
[1752982151380,3.02535012,178.16,178.15,3.08]
[1752982151582,1.15,178.16,178.15,3.08]
[1752982151784,8.63515012,178.16,178.15,3.08]
[1752982152880,1.15,178.15,178.1,3.08]
[1752982153081,1.15,178.15,178.06,3.08]
[1752982153082,1.87535012,178.14,178.06,3.08]
[1752982153384,1.87535012,178.14,178.08,3.08]
[1752982153579,1.87535012,178.14,178.12,3.08]